bitfinex/quotes_BTCUSD_20251201
["timestamp","ask_amount","ask_price","bid_price","bid_amount"]
[1764621793491,0.00147497,85483.0,85482.0,1.15989331]
[1764621793673,0.00147497,85483.0,85482.0,1.16189331]
[1764621794392,0.00147497,85483.0,85482.0,1.22963532]
[1764621794583,0.00147497,85483.0,85482.0,1.16185331]
[1764621795933,0.00147497,85483.0,85482.0,0.83885331]
[1764621796294,0.00147497,85483.0,85482.0,1.14329331]
[1764621796503,0.00147497,85483.0,85482.0,1.16185331]
[1764621796831,0.00147497,85483.0,85482.0,1.15485331]
[1764621796983,0.00147497,85483.0,85482.0,1.15546451]
[1764621797221,0.00147497,85483.0,85482.0,1.15946451]
[1764621797378,0.00147497,85483.0,85482.0,1.15546451]
[1764621797635,0.00147497,85483.0,85482.0,1.15846451]
[1764621798609,0.00147497,85483.0,85482.0,1.13990451]
[1764621798828,0.00147497,85483.0,85482.0,0.83546451]
[1764621799186,0.24564147,85491.0,85488.0,0.23395059]
[1764621799323,0.24564147,85491.0,85490.0,0.01148004]
[1764621799525,0.01169686,85493.0,85490.0,0.01169727]
[1764621799709,0.01169686,85493.0,85490.0,0.24564176]
[1764621799904,0.00025885,85491.0,85490.0,0.24564176]
[1764621800169,0.00025885,85491.0,85490.0,0.2571218]
[1764621800949,0.00025885,85491.0,85490.0,0.2601218]
[1764621801146,0.00025885,85491.0,85490.0,0.2581218]
[1764621801728,0.00025885,85491.0,85490.0,0.2581228]
[1764621801934,0.00025885,85491.0,85490.0,0.01248004]
[1764621802160,0.00025885,85491.0,85490.0,0.24542553]
[1764621802360,0.00025885,85491.0,85490.0,0.24842553]
[1764621802596,0.00025885,85491.0,85490.0,0.24942553]
[1764621803085,0.05045711,85494.0,85490.0,0.2611228]
[1764621803250,0.05045711,85494.0,85493.0,0.01148004]
[1764621803474,0.05045711,85494.0,85493.0,0.03004004]
[1764621803848,0.01195483,85499.0,85494.0,0.02317676]
[1764621804056,0.00025879,85499.0,85498.0,0.11680294]
[1764621804410,0.23417965,85499.0,85498.0,0.11680294]
[1764621804821,0.23417965,85499.0,85498.0,0.40176949]
[1764621804822,0.00025879,85499.0,85498.0,0.40176949]
[1764621805017,0.00025879,85499.0,85498.0,0.73624953]
[1764621806263,0.00025879,85499.0,85498.0,0.73724953]
[1764621806456,0.00025879,85499.0,85498.0,1.13724953]
[1764621806759,0.01169317,85520.0,85498.0,1.13724953]
[1764621806760,0.2338642,85520.0,85519.0,0.01148004]
[1764621806914,0.24566179,85520.0,85519.0,0.01148004]
[1764621807941,0.00010442,85520.0,85519.0,0.01148004]
[1764621809573,0.00010442,85520.0,85518.0,0.23386672]
[1764621809830,0.00010442,85520.0,85519.0,0.07400303]
[1764621812209,0.00010442,85520.0,85519.0,0.07600303]
[1764621812413,0.00078356,85520.0,85519.0,0.07600303]
[1764621813703,0.00078356,85520.0,85519.0,0.39900303]
[1764621813905,0.00078356,85520.0,85519.0,0.79900303]
[1764621814693,0.00078356,85520.0,85519.0,1.03286918]
[1764621815940,0.00078356,85520.0,85519.0,1.05142918]
[1764621816630,0.00078356,85520.0,85519.0,1.05104038]
[1764621822332,0.00078356,85520.0,85519.0,1.03248038]
[1764621822557,0.00078356,85520.0,85519.0,0.97034619]
[1764621822777,0.00078356,85520.0,85519.0,0.66590619]
[1764621822981,0.00078356,85520.0,85519.0,0.41348004]
[1764621823177,0.00078356,85520.0,85519.0,0.43204004]
[1764621823382,0.00078356,85520.0,85519.0,1.03994914]
[1764621823621,0.00078356,85520.0,85519.0,1.05142918]
[1764621838164,0.23464698,85520.0,85519.0,0.41348004]
[1764621838336,0.00078356,85520.0,85519.0,0.02056]
[1764621838541,0.00078356,85520.0,85519.0,0.03204004]
[1764621838755,0.23464698,85520.0,85519.0,0.03204004]
[1764621839124,0.23464698,85520.0,85519.0,0.25442615]
[1764621839125,0.00078356,85520.0,85519.0,0.25442615]
[1764621839942,0.00078356,85520.0,85519.0,0.02056]
[1764621840370,0.00078356,85520.0,85519.0,0.25442615]
[1764621840565,0.00078356,85520.0,85519.0,0.26590619]
[1764621840991,0.00078356,85520.0,85519.0,0.32842918]
[1764621842349,0.00078356,85520.0,85519.0,0.72842918]
[1764621844320,0.00078356,85520.0,85519.0,0.69838914]
[1764621844524,0.00078356,85520.0,85519.0,0.72842918]
[1764621845430,0.00078356,85520.0,85519.0,1.05142918]
[1764621846472,0.00078356,85520.0,85519.0,1.02138914]
[1764621846679,0.00078356,85520.0,85519.0,1.05142918]
[1764621846870,0.00078356,85520.0,85519.0,1.03286918]
[1764621847186,0.00078356,85520.0,85519.0,1.05142918]
[1764621850998,0.00078356,85520.0,85519.0,1.13793564]
[1764621853156,1e-08,85520.0,85519.0,1.1264556]
[1764621853359,0.0004,85560.0,85549.0,0.30778717]
[1764621853681,0.00051637,85550.0,85549.0,0.43167007]
[1764621854116,0.05476989,85563.0,85558.0,0.24544484]
[1764621854336,0.06684499,85563.0,85562.0,0.11680294]
[1764621854759,0.00038781,85563.0,85562.0,0.11680294]
[1764621854934,0.2341337,85563.0,85562.0,0.11680294]
[1764621855352,0.00038781,85563.0,85562.0,0.11680294]
[1764621855737,0.00038781,85563.0,85562.0,0.35255156]
[1764621856163,0.00038781,85563.0,85562.0,0.3522424]
[1764621856526,0.00038781,85563.0,85562.0,0.11849378]
[1764621856765,0.2341337,85563.0,85562.0,0.11849378]
[1764621856968,0.00038781,85563.0,85562.0,0.11849378]
[1764621857544,0.2341337,85563.0,85562.0,0.11849378]
[1764621858206,0.00038781,85563.0,85562.0,0.11849378]
[1764621859319,0.00038781,85563.0,85562.0,0.3522424]
[1764621859653,0.00177757,85563.0,85562.0,0.3522424]
[1764621860148,0.00177757,85563.0,85562.0,0.41476539]
[1764621861325,0.00177757,85563.0,85562.0,0.81476539]
[1764621862149,0.00177757,85563.0,85562.0,0.80328535]
[1764621862356,0.00177757,85563.0,85562.0,0.81476539]
[1764621868283,0.00177757,85563.0,85562.0,0.58101677]
[1764621868513,0.00177757,85563.0,85562.0,0.12557374]
[1764621868705,0.00177757,85563.0,85562.0,0.13705378]
[1764621868881,0.00177757,85563.0,85562.0,0.3708024]
[1764621876602,0.23552346,85563.0,85562.0,0.002]
[1764621876814,0.23552346,85563.0,85562.0,0.13736294]
[1764621879229,0.00177757,85563.0,85562.0,0.35963152]
[1764621879426,0.00177757,85563.0,85562.0,0.37111156]
[1764621881770,0.01208633,85570.0,85566.0,0.24542216]
[1764621881771,0.23372777,85570.0,85566.0,0.24542216]
[1764621882015,0.23372777,85570.0,85569.0,0.01148004]
[1764621882398,0.08355473,85571.0,85570.0,0.01148004]
[1764621882567,0.23370496,85578.0,85570.0,0.00999999]
[1764621882777,0.23370765,85577.0,85576.0,0.11680294]
[1764621883143,0.00011628,85578.0,85577.0,0.24518769]
[1764621883341,0.00011628,85578.0,85577.0,0.23370765]
[1764621883656,0.00011628,85578.0,85577.0,0.24518769]
[1764621886817,0.00011628,85578.0,85577.0,0.26374769]
[1764621888680,0.00011628,85578.0,85576.0,0.1053229]
[1764621888891,0.00011628,85578.0,85577.0,0.26374769]
[1764621894001,0.00011628,85578.0,85577.0,0.03004004]
[1764621894207,0.00011628,85578.0,85577.0,0.26374769]
[1764621894410,0.00060087,85578.0,85577.0,0.32627068]
[1764621894834,0.00060087,85578.0,85577.0,0.72627068]
[1764621895413,0.00060087,85578.0,85577.0,0.71479064]
[1764621895613,0.00060087,85578.0,85577.0,0.72627068]
[1764621898950,0.00060087,85578.0,85577.0,1.04927068]
[1764621899975,0.23361121,85613.0,85608.0,0.2453036]
[1764621900181,0.00011628,85613.0,85610.0,0.24529843]
[1764621900378,0.00011628,85613.0,85612.0,0.11680294]
[1764621900812,0.00011628,85613.0,85612.0,0.1053229]
[1764621901123,0.00011628,85613.0,85612.0,0.11680294]
[1764621901528,0.00011628,85613.0,85612.0,0.13532294]
[1764621902904,0.00011628,85613.0,85612.0,0.19784593]
[1764621903745,0.00011628,85613.0,85612.0,0.17932593]
[1764621903873,0.00011628,85613.0,85612.0,0.19784593]
[1764621904671,0.00011628,85613.0,85612.0,0.17932593]
[1764621905052,0.00011628,85613.0,85612.0,0.19784593]
[1764621905652,0.00011628,85613.0,85612.0,0.17932593]
[1764621905906,0.00011628,85613.0,85612.0,0.11680294]
[1764621906041,0.00124643,85613.0,85612.0,0.1053229]
[1764621906407,0.00124643,85613.0,85612.0,0.1238429]
[1764621906628,0.00124643,85613.0,85612.0,0.13532294]
[1764621906840,0.00124643,85613.0,85612.0,0.1238429]
[1764621907045,0.05159608,85613.0,85577.0,0.01168538]
[1764621907269,0.24535575,85590.0,85589.0,0.11680294]
[1764621907476,0.24535575,85590.0,85589.0,0.01148004]
[1764621907677,0.23370765,85577.0,85567.0,0.24542065]
[1764621907827,0.23370765,85577.0,85569.0,0.2337284]
[1764621908037,0.23370492,85578.0,85575.0,0.01852]
[1764621908399,0.23367977,85588.0,85576.0,0.11700841]
[1764621908612,0.01168401,85587.0,85586.0,0.01148004]
[1764621908834,0.01168374,85589.0,85582.0,0.0116847]
[1764621909184,0.00011625,85589.0,85588.0,0.01148004]
[1764621910464,0.01168456,85583.0,85580.0,0.00999999]
[1764621910710,0.01168456,85583.0,85580.0,0.01148004]
[1764621910711,0.23369673,85581.0,85580.0,0.01148004]
[1764621911258,0.23369673,85581.0,85563.0,0.1053229]
[1764621911259,0.09698205,85581.0,85563.0,0.1053229]
[1764621911458,0.01168702,85565.0,85564.0,0.1053229]
[1764621911664,0.24542869,85565.0,85563.0,0.01852]
[1764621911877,0.24542869,85565.0,85564.0,0.1053229]
[1764621912283,0.01168579,85574.0,85567.0,0.01168674]
[1764621912484,0.01168592,85573.0,85570.0,0.00999999]
[1764621912778,0.01168592,85573.0,85572.0,0.01148004]
[1764621913451,0.23370765,85577.0,85572.0,0.01148004]
[1764621913452,0.23370398,85579.0,85572.0,0.01148004]
[1764621913655,0.01168579,85574.0,85571.0,0.0116862]
[1764621913894,0.01168579,85574.0,85573.0,0.03000004]
[1764621914110,0.23370418,85579.0,85577.0,0.01148004]
[1764621914325,0.2453866,85580.0,85578.0,0.1053229]
[1764621914541,0.0116847,85582.0,85578.0,0.1053229]
[1764621914759,0.24538457,85581.0,85578.0,0.1053229]
[1764621914989,0.23370011,85580.0,85578.0,0.1053229]
[1764621915345,0.23370058,85580.0,85578.0,0.1053229]
[1764621915768,0.01168551,85576.0,85573.0,0.01852]
[1764621915965,0.23372404,85571.0,85569.0,0.01148004]
[1764621916180,0.23372404,85571.0,85570.0,0.01852]
[1764621916987,0.01168784,85559.0,85555.0,0.01148004]
[1764621917318,0.23374938,85562.0,85560.0,0.01852]
[1764621917670,0.2454335,85563.0,85560.0,0.01852]
[1764621917976,0.23377723,85552.0,85550.0,0.12523941]
[1764621918176,0.23377723,85552.0,85550.0,0.12535569]
[1764621918348,0.23374223,85565.0,85560.0,0.00999999]
[1764621918566,0.24542457,85566.0,85565.0,0.01148004]
[1764621918972,0.24542457,85566.0,85552.0,0.24546319]
[1764621918973,0.23375574,85560.0,85556.0,0.01168825]
[1764621919175,0.01168756,85561.0,85560.0,0.01148004]
[1764621919402,0.24543937,85561.0,85560.0,0.01148004]
[1764621921357,0.01168688,85566.0,85560.0,0.01199999]
[1764621921564,0.2454337,85563.0,85562.0,0.01148004]
[1764621922268,0.23375135,85561.0,85560.0,0.003]
[1764621922507,0.55675135,85561.0,85560.0,0.002]
[1764621923355,0.23377868,85551.0,85550.0,0.00151279]
[1764621927281,0.01168784,85559.0,85550.0,0.00151279]
[1764621927282,0.01168633,85570.0,85554.0,0.23376906]
[1764621927481,0.01168688,85566.0,85560.0,0.00999999]
[1764621927695,0.24542308,85567.0,85560.0,0.00999999]
[1764621927828,0.01168633,85570.0,85567.0,0.01148004]
[1764621928027,0.01168592,85573.0,85567.0,0.01148004]
[1764621928227,0.24541497,85570.0,85567.0,0.01148004]
[1764621928708,0.0116862,85571.0,85567.0,0.01148004]
[1764621928899,0.01168633,85570.0,85567.0,0.01148004]
[1764621929272,0.2337308,85569.0,85567.0,0.01148004]
[1764621929537,0.01168579,85574.0,85567.0,0.01148004]
[1764621929538,0.323,85589.0,85570.0,0.00999999]
[1764621929718,0.01168538,85577.0,85574.0,0.01148004]
[1764621929878,0.01168483,85581.0,85575.0,0.01168565]
[1764621930083,0.0116851,85579.0,85578.0,0.01148004]
[1764621930412,0.01168647,85569.0,85565.0,0.01168702]
[1764621930615,0.01168579,85574.0,85567.0,0.03004004]
[1764621930778,0.01168579,85574.0,85569.0,0.01148004]
[1764621930779,0.01168592,85573.0,85569.0,0.01148004]
[1764621930985,0.24540894,85572.0,85569.0,0.01148004]
[1764621931211,0.01168606,85572.0,85569.0,0.01159632]
[1764621931412,0.0116851,85579.0,85572.0,0.01168606]
[1764621931588,0.24537794,85583.0,85578.0,0.01168524]
[1764621931820,0.23368625,85585.0,85582.0,0.01148004]
[1764621932022,0.0002584,85586.0,85584.0,0.01148004]
[1764621932200,0.07950282,85588.0,85584.0,0.01148004]
[1764621932572,0.24536615,85587.0,85584.0,0.01148004]
[1764621932848,0.01168374,85589.0,85584.0,0.01148004]
[1764621933024,0.01168374,85589.0,85587.0,0.1053229]
[1764621933426,0.01194143,85594.0,85587.0,0.11700691]
[1764621933627,0.00025837,85594.0,85593.0,0.01148004]
[1764621935472,0.00025837,85594.0,85591.0,0.04168351]
[1764621935700,0.00025837,85594.0,85591.0,0.01852]
[1764621936351,0.00025837,85594.0,85591.0,0.26387189]
[1764621936575,0.0116836,85590.0,85587.0,0.1053229]
[1764621936807,0.60041994,85620.0,85574.0,0.01852]
[1764621937024,0.60041994,85620.0,85577.0,0.01148004]
[1764621937025,0.01168524,85578.0,85577.0,0.01148004]
[1764621937618,0.23371972,85573.0,85572.0,0.1053229]
[1764621937905,0.23372677,85570.0,85560.0,0.00999999]
[1764621938113,0.23372677,85570.0,85565.0,0.01852]
[1764621939355,0.23372677,85570.0,85565.0,0.25226007]
[1764621939557,0.23372677,85570.0,85565.0,0.03020702]
[1764621940308,0.23372677,85570.0,85569.0,0.00211628]
[1764621940536,0.23372677,85570.0,85569.0,0.00311628]
[1764621942256,0.01168606,85572.0,85569.0,0.00311628]
[1764621942459,0.04201438,85628.0,85569.0,0.00311628]
[1764621942460,0.01168538,85577.0,85570.0,0.01148004]
[1764621942660,0.23371857,85573.0,85572.0,0.11680294]
[1764621943065,0.23371603,85574.0,85572.0,0.11680294]
[1764621943839,0.23371857,85573.0,85572.0,0.01148004]
[1764621944093,0.23372677,85570.0,85569.0,0.00111628]
[1764621944575,0.23372677,85570.0,85569.0,0.00011628]
[1764621945142,0.24540199,85574.0,85569.0,0.00011628]
[1764621945337,0.01168579,85574.0,85573.0,0.1053229]
[1764621945873,0.23370765,85577.0,85576.0,0.01148004]
[1764621946229,0.23371584,85574.0,85573.0,0.1053229]
[1764621946428,0.23371584,85574.0,85573.0,0.11780294]
[1764621946675,0.23372404,85571.0,85569.0,0.00011628]
[1764621947005,0.23372677,85570.0,85569.0,0.00011628]
[1764621948239,0.01168579,85574.0,85569.0,0.00011628]
[1764621948554,0.24539959,85575.0,85574.0,0.01148004]
[1764621948893,0.01168565,85575.0,85572.0,0.1053229]
[1764621949193,0.24539902,85575.0,85572.0,0.33904408]
[1764621949397,0.01168592,85573.0,85569.0,0.11691922]
[1764621949556,0.01168606,85572.0,85569.0,0.11691922]
[1764621949967,0.24540847,85572.0,85569.0,0.11691922]
[1764621950153,0.23372503,85571.0,85569.0,0.11691922]
[1764621950555,0.3097865,85570.0,85569.0,0.00011628]
[1764621950769,0.23372677,85570.0,85569.0,0.00011628]
[1764621951873,0.01168729,85563.0,85560.0,0.00999999]
[1764621952078,0.23375135,85561.0,85560.0,0.00999999]
[1764621953617,0.23374862,85562.0,85560.0,0.00999999]
[1764621953838,0.23374948,85562.0,85559.0,0.01148004]
[1764621954221,0.24543534,85563.0,85560.0,0.03851998]
[1764621954416,0.01168729,85563.0,85560.0,0.02851999]
[1764621954844,0.2337495,85562.0,85560.0,0.02851999]
[1764621955199,0.23375135,85561.0,85560.0,0.02851999]
[1764621955554,0.23375135,85561.0,85560.0,0.04000003]
[1764621955871,0.24543541,85563.0,85560.0,0.04000003]
[1764621956320,0.23375113,85562.0,85560.0,0.04000003]
[1764621956488,0.01168674,85567.0,85561.0,0.24543659]
[1764621956772,0.00058372,85569.0,85568.0,0.23373223]
[1764621956968,0.00058372,85569.0,85568.0,0.30773526]
[1764621957396,0.00058372,85569.0,85568.0,0.32625526]
[1764621957935,0.00058372,85569.0,85568.0,0.30773526]
[1764621958142,0.00058372,85569.0,85568.0,0.32625526]
[1764621958585,0.00058372,85569.0,85568.0,0.30773526]
[1764621958763,0.00058372,85569.0,85568.0,0.26673227]
[1764621958963,0.00058372,85569.0,85568.0,0.26373227]
[1764621959301,0.00058372,85569.0,85568.0,0.26673227]
[1764621959520,0.00058372,85569.0,85568.0,0.26373227]
[1764621959795,0.00058372,85569.0,85568.0,0.26773227]
[1764621960154,0.00058372,85569.0,85568.0,0.26673227]
[1764621960363,0.00058372,85569.0,85568.0,0.26773227]
[1764621960760,0.00058372,85569.0,85568.0,0.25625223]
[1764621960995,0.00058372,85569.0,85565.0,0.1053229]
[1764621961355,0.24541924,85568.0,85566.0,0.01852]
[1764621961671,0.01168702,85565.0,85560.0,0.26543983]
[1764621961883,0.00058372,85569.0,85566.0,0.01168688]
[1764621962089,0.00058372,85569.0,85568.0,0.33905513]
[1764621962292,0.00058372,85569.0,85568.0,0.40157812]
[1764621962476,0.00058372,85569.0,85568.0,0.41605816]
[1764621962692,0.00058372,85569.0,85568.0,0.73905816]
[1764621962854,0.00058372,85569.0,85568.0,0.72757812]
[1764621963171,0.00058372,85569.0,85568.0,0.73605816]
[1764621963574,0.00058372,85569.0,85568.0,0.75457816]
[1764621964089,0.00058372,85569.0,85568.0,0.75557816]
[1764621965076,0.00058372,85569.0,85568.0,1.15557816]
[1764621965476,0.00058372,85569.0,85568.0,1.15857816]
[1764621967432,0.00058372,85569.0,85568.0,1.14005816]
[1764621967646,0.00058372,85569.0,85568.0,1.15857816]
[1764621967835,0.00058372,85569.0,85568.0,1.14005816]
[1764621968236,0.00058372,85569.0,85568.0,1.15857816]
[1764621968398,0.00058372,85569.0,85568.0,1.14005816]
[1764621968629,0.00058372,85569.0,85568.0,0.02252]
[1764621968824,0.00058372,85569.0,85568.0,0.1278429]
[1764621969050,0.00058372,85569.0,85568.0,0.13932294]
[1764621969230,0.00058372,85569.0,85568.0,0.37005517]
[1764621969444,0.00058372,85569.0,85568.0,0.001]
[1764621969650,0.23431322,85569.0,85568.0,0.002]
[1764621969827,0.28345447,85569.0,85568.0,0.002]
[1764621970200,0.23431322,85569.0,85568.0,0.003]
[1764621970604,0.23431322,85569.0,85568.0,0.002]
[1764621971198,0.23431322,85569.0,85558.0,0.00139634]
[1764621971199,0.23375682,85559.0,85558.0,0.00139634]
[1764621973398,0.55675682,85559.0,85558.0,0.00139634]
[1764621973600,0.67198278,85559.0,85558.0,0.00139634]
[1764621974383,0.55775682,85559.0,85558.0,0.00139634]
[1764621974571,0.55675682,85559.0,85558.0,0.00139634]
[1764621974989,0.55775682,85559.0,85558.0,0.00139634]
[1764621975428,0.23475682,85559.0,85558.0,0.00139634]
[1764621977204,0.06515711,85559.0,85558.0,0.00139634]
[1764621977569,0.06615711,85559.0,85558.0,0.00139634]
[1764621980847,0.14523465,85559.0,85558.0,0.00139634]
[1764621983622,0.06615711,85559.0,85558.0,0.00139634]
[1764621984009,0.38915711,85559.0,85558.0,0.00139634]
[1764621984907,0.38815711,85559.0,85558.0,0.00139634]
[1764621985328,0.38915711,85559.0,85558.0,0.00139634]
[1764621986598,0.06615711,85559.0,85558.0,0.00139634]
[1764621988149,0.38915711,85559.0,85558.0,0.00139634]
[1764621989466,0.38815711,85559.0,85558.0,0.00139634]
[1764621989889,0.38915711,85559.0,85558.0,0.00139634]
[1764621990212,0.38815711,85559.0,85558.0,0.00139634]
[1764621990439,0.38915711,85559.0,85558.0,0.00139634]
[1764621990557,0.50438307,85559.0,85558.0,0.00139634]
[1764621991202,0.50338307,85559.0,85558.0,0.00139634]
[1764621991406,0.50638307,85559.0,85558.0,0.00139634]
[1764621992015,0.39115711,85559.0,85558.0,0.00139634]
[1764621994113,0.3910673,85559.0,85558.0,0.00139634]
[1764621994342,0.01169139,85533.0,85521.0,0.01148004]
[1764621994543,0.24554867,85523.0,85521.0,0.01186785]
[1764621994743,0.23385795,85522.0,85521.0,0.01186785]
[1764621995104,0.24554867,85523.0,85521.0,0.01186785]
[1764621995331,0.0116918,85530.0,85521.0,0.02356088]
[1764621995529,0.2455337,85528.0,85523.0,0.24554538]
[1764621995746,0.2455337,85528.0,85521.0,0.00038781]
[1764621995747,0.2338553,85523.0,85521.0,0.00038781]
[1764621995923,0.24554548,85524.0,85523.0,0.01148004]
[1764621996130,0.23385122,85525.0,85523.0,0.01148004]
[1764621996388,0.23385122,85525.0,85524.0,0.01148004]
[1764621996580,0.23385122,85525.0,85524.0,0.01283775]
[1764621996719,0.23384756,85526.0,85524.0,0.00135771]
[1764621996924,0.23384756,85526.0,85525.0,0.01148004]
[1764621997229,0.23384756,85526.0,85525.0,0.0128054]
[1764621997451,0.24440476,85527.0,85526.0,0.01148004]
[1764621998858,0.01169139,85533.0,85526.0,0.01148004]
[1764621999041,0.01169098,85536.0,85530.0,0.01999998]
[1764621999256,0.24551926,85533.0,85532.0,0.01148004]
[1764621999456,0.23383334,85531.0,85530.0,0.00999999]
[1764622000951,0.23383334,85531.0,85530.0,0.01099999]
[1764622002206,0.23383334,85531.0,85530.0,0.00999999]
[1764622002611,0.23383334,85531.0,85530.0,0.01099999]
[1764622002820,0.23383334,85531.0,85530.0,0.00999999]
[1764622002995,0.23383334,85531.0,85530.0,0.01099999]
[1764622003797,0.23383334,85531.0,85530.0,0.00999999]
[1764622004342,0.23385795,85522.0,85521.0,0.00038781]
[1764622005872,0.23385795,85522.0,85521.0,0.00238781]
[1764622006359,0.55685795,85522.0,85521.0,0.00238781]
[1764622007162,0.55685795,85522.0,85521.0,0.00038781]
[1764622008808,0.58206276,85522.0,85521.0,0.00038781]
[1764622009405,0.58306276,85522.0,85521.0,0.00038781]
[1764622009613,0.55785795,85522.0,85521.0,0.00038781]
[1764622009822,0.55685795,85522.0,85521.0,0.00038781]
[1764622010012,0.58405325,85522.0,85521.0,0.00038781]
[1764622010182,0.58205325,85522.0,85521.0,0.00038781]
[1764622010378,0.55685795,85522.0,85521.0,0.00038781]
[1764622010600,0.55885795,85522.0,85521.0,0.00038781]
[1764622011841,0.55685795,85522.0,85521.0,0.00038781]
[1764622012205,0.55785795,85522.0,85521.0,0.00038781]
[1764622015116,0.64267233,85522.0,85521.0,0.00038781]
[1764622015891,0.58303094,85522.0,85521.0,0.00038781]
[1764622017207,0.55785795,85522.0,85521.0,0.00038781]
[1764622022097,0.324,85522.0,85521.0,0.00038781]
[1764622022308,0.001,85522.0,85521.0,0.00038781]
[1764622022504,0.001,85522.0,85521.0,0.30825152]
[1764622023174,0.001,85522.0,85521.0,0.32681152]
[1764622023737,0.001,85522.0,85521.0,0.64981152]
[1764622024000,0.00026557,85559.0,85558.0,0.24523959]
[1764622024158,0.00026557,85559.0,85558.0,0.26379959]
[1764622024361,0.23372404,85571.0,85570.0,0.00999999]
[1764622024710,0.23372404,85571.0,85558.0,0.13536294]
[1764622024711,0.01168606,85572.0,85565.0,0.01168702]
[1764622024905,0.01168565,85575.0,85570.0,0.00999999]
[1764622025127,0.0116847,85582.0,85575.0,0.01168565]
[1764622025311,0.01168497,85580.0,85575.0,0.01168565]
[1764622025486,0.24538776,85579.0,85571.0,0.1033229]
[1764622025703,0.01168497,85580.0,85573.0,0.01168592]
[1764622025909,0.01168551,85576.0,85570.0,0.01999998]
[1764622026105,0.01168715,85564.0,85560.0,0.02148003]
[1764622026403,0.01168715,85564.0,85561.0,0.08108299]
[1764622026606,0.24543366,85563.0,85558.0,0.1053229]
[1764622026805,0.01168743,85562.0,85559.0,0.01856]
[1764622027006,0.23375191,85561.0,85559.0,0.01856]
[1764622027584,0.01168866,85553.0,85545.0,0.11701265]
[1764622027779,0.01168934,85548.0,85547.0,0.01148004]
[1764622028020,0.01168934,85548.0,85547.0,0.03004004]
[1764622028777,0.01168934,85548.0,85547.0,0.00038781]
[1764622029017,0.01168934,85548.0,85547.0,0.01894781]
[1764622029210,0.01168893,85551.0,85547.0,0.01894781]
[1764622029422,0.23375601,85560.0,85553.0,0.01168866]
[1764622029624,0.01168756,85561.0,85558.0,0.01148004]
[1764622030005,0.23375409,85560.0,85558.0,0.01148004]
[1764622030209,0.01168743,85562.0,85558.0,0.01148004]
[1764622030437,0.01168743,85562.0,85557.0,0.01168811]
[1764622030438,0.01168743,85562.0,85561.0,0.01148004]
[1764622030845,0.24542531,85566.0,85563.0,0.01148004]
[1764622031087,0.24542531,85566.0,85564.0,0.1053229]
[1764622031285,0.23374114,85565.0,85564.0,0.1053229]
[1764622031425,0.23374114,85565.0,85564.0,0.11680294]
[1764622032317,0.23375135,85561.0,85560.0,0.00999999]
[1764622032492,0.24545568,85556.0,85551.0,0.11680294]
[1764622032697,0.01168811,85557.0,85553.0,0.24546038]
[1764622033012,0.01168811,85557.0,85554.0,0.23377]
[1764622033172,0.24545136,85557.0,85553.0,0.24546127]
[1764622033579,0.24545136,85557.0,85553.0,0.01168866]
[1764622033774,0.24545136,85557.0,85553.0,0.24546139]
[1764622033997,0.24545136,85557.0,85553.0,0.24746139]
[1764622034199,0.23376551,85556.0,85553.0,0.01368866]
[1764622036198,0.23377048,85554.0,85553.0,0.002]
[1764622036743,0.23378687,85548.0,85547.0,0.00038781]
[1764622038234,0.23378687,85548.0,85547.0,0.00238781]
[1764622047552,0.08131725,85548.0,85547.0,0.00238781]
[1764622050300,0.01168907,85550.0,85547.0,0.00238781]
[1764622050473,0.0116877,85560.0,85555.0,0.01168838]
[1764622050676,0.0116877,85560.0,85555.0,0.11701128]
[1764622050880,0.01168743,85562.0,85555.0,0.11701128]
[1764622051082,0.23375973,85558.0,85555.0,0.11701128]
[1764622051420,0.01168784,85559.0,85558.0,0.01148004]
[1764622051628,0.01168784,85559.0,85555.0,0.1053229]
[1764622051629,0.23376501,85556.0,85555.0,0.1053229]
[1764622051832,0.05452201,85556.0,85555.0,0.1053229]
[1764622051973,0.24546274,85553.0,85550.0,0.03148002]
[1764622052160,0.323,85579.0,85552.0,0.1053229]
[1764622052356,0.24544309,85560.0,85554.0,0.24545637]
[1764622052796,0.24544309,85560.0,85559.0,0.01148004]
[1764622055737,0.24544309,85560.0,85540.0,0.00999999]
[1764622055738,0.23378687,85548.0,85540.0,0.00999999]
[1764622055950,0.23378687,85548.0,85540.0,0.01999998]
[1764622056159,0.24547346,85550.0,85540.0,0.01999998]
[1764622056364,0.01168907,85550.0,85542.0,0.01169016]
[1764622056572,0.23378605,85549.0,85545.0,0.01168975]
[1764622056743,0.23378605,85549.0,85548.0,0.01148004]
[1764622057087,0.23378605,85549.0,85542.0,0.24549253]
[1764622057286,0.23378605,85549.0,85547.0,0.00138781]
[1764622058581,0.01168879,85552.0,85547.0,0.00038781]
[1764622058786,0.23378568,85549.0,85548.0,0.002]
[1764622059000,0.01168743,85562.0,85551.0,0.1053229]
[1764622059210,0.23374076,85565.0,85560.0,0.01999998]
[1764622059414,0.23374947,85562.0,85561.0,0.03000004]
[1764622059818,0.23377444,85553.0,85551.0,0.1053229]
[1764622060022,0.24546081,85554.0,85552.0,0.01852]
[1764622060191,0.23377409,85553.0,85552.0,0.01852]
[1764622062519,0.23377409,85553.0,85552.0,0.002]
[1764622062721,0.24546081,85554.0,85552.0,0.02052]
[1764622063720,0.01168797,85558.0,85552.0,0.03020879]
[1764622064056,0.23376583,85556.0,85553.0,0.01148004]
[1764622064294,0.01168702,85565.0,85562.0,0.01148004]
[1764622064432,0.01194523,85567.0,85564.0,0.1053229]
[1764622064633,0.23373769,85566.0,85564.0,0.1053229]
[1764622064852,0.23374043,85565.0,85564.0,0.1053229]
[1764622067082,0.23373769,85566.0,85564.0,0.11680294]
[1764622067466,0.23374043,85565.0,85564.0,0.11680294]
[1764622067665,0.00025849,85567.0,85566.0,0.01148004]
[1764622067853,0.23399345,85567.0,85566.0,0.01148004]
[1764622068661,0.23399345,85567.0,85566.0,0.01248004]
[1764622070522,0.23399345,85567.0,85566.0,0.001]
[1764622076510,0.00025849,85567.0,85566.0,0.24621773]
[1764622076804,0.00025849,85567.0,85566.0,0.01248004]
[1764622077034,0.00025849,85567.0,85566.0,0.24621773]
[1764622077241,0.00025849,85567.0,85566.0,0.30874072]
[1764622079582,0.00025849,85567.0,85566.0,0.63174072]
[1764622080970,0.00025849,85567.0,85566.0,0.63074072]
[1764622081281,0.00025849,85567.0,85566.0,0.63274072]
[1764622081486,0.00025849,85567.0,85566.0,0.63074072]
[1764622081617,0.00025849,85567.0,85566.0,0.63274072]
[1764622081815,0.00025849,85567.0,85566.0,0.63974072]
[1764622082018,0.00025849,85567.0,85566.0,1.03974072]
[1764622082572,0.00025849,85567.0,85566.0,1.03074072]
[1764622082978,0.00025849,85567.0,85566.0,1.03774072]
[1764622083542,0.00025849,85567.0,85566.0,1.03874072]
[1764622083946,0.00025849,85567.0,85566.0,1.05726072]
[1764622084171,0.00025849,85567.0,85566.0,1.04926072]
[1764622084346,0.00025849,85567.0,85566.0,0.96921773]
[1764622084552,0.00025849,85567.0,85566.0,0.25221773]
[1764622084732,0.00025849,85567.0,85566.0,0.26473773]
[1764622084990,0.00025849,85567.0,85566.0,0.27073773]
[1764622085192,0.00025849,85567.0,85566.0,0.25825769]